[Event "IV Elllobregat Open Chess Tmnt"]
[Site "Sant Boi de Llobregat, Spain"]
[Date "2023.12.02"]
[Round "3.1"]
[White "Erdogmus, Yagiz Kaan"]
[Black "Fedoseev, Vladimir"]
[Result "1/2-1/2"]
[TimeControl "90min/40moves + 15min/end + 30sec from move 1"]
[WhiteFideId "44599790"]
[BlackFideId "24130737"]
[WhiteElo "2496"]
[BlackElo "2675"]

1. e4 {[%clk 01:29:39]} {[%emt 00:01:21]} e5 {[%clk 01:30:48]} {[%emt
00:00:13]} 2. Nf3 {[%clk 01:29:56]} {[%emt 00:00:13]} Nc6 {[%clk 01:31:11]}
{[%emt 00:00:06]} 3. Bb5 {[%clk 01:30:09]} {[%emt 00:00:17]} Nf6 {[%clk
01:31:31]} {[%emt 00:00:10]} 4. O-O {[%clk 01:30:18]} {[%emt 00:00:21]} Nxe4
{[%clk 01:31:54]} {[%emt 00:00:07]} 5. Re1 {[%clk 01:30:08]} {[%emt 00:00:40]}
Nd6 {[%clk 01:32:15]} {[%emt 00:00:09]} 6. Nxe5 {[%clk 01:30:29]} {[%emt
00:00:10]} Be7 {[%clk 01:32:40]} {[%emt 00:00:04]} 7. Bf1 {[%clk 01:30:03]}
{[%emt 00:00:57]} Nf5 {[%clk 01:32:56]} {[%emt 00:00:13]} 8. c3 {[%clk
01:25:01]} {[%emt 00:05:32]} Nxe5 {[%clk 01:29:59]} {[%emt 00:03:26]} 9. Rxe5
{[%clk 01:25:27]} {[%emt 00:00:05]} d6 {[%clk 01:30:13]} {[%emt 00:00:16]} 10.
Re1 {[%clk 01:25:10]} {[%emt 00:00:47]} c5 {[%clk 01:26:19]} {[%emt 00:04:24]}
11. d3 {[%clk 01:12:31]} {[%emt 00:13:10]} O-O {[%clk 01:24:15]} {[%emt
00:02:33]} 12. Nd2 {[%clk 01:12:33]} {[%emt 00:00:28]} d5 {[%clk 01:22:19]}
{[%emt 00:02:25]} 13. Nf3 {[%clk 01:11:14]} {[%emt 00:01:50]} Be6 {[%clk
01:22:18]} {[%emt 00:00:32]} 14. g3 {[%clk 01:08:06]} {[%emt 00:03:38]} h6
{[%clk 01:20:26]} {[%emt 00:02:21]} 15. Bg2 {[%clk 01:07:08]} {[%emt 00:01:29]}
Bd6 {[%clk 01:19:37]} {[%emt 00:01:19]} 16. Qc2 {[%clk 01:02:38]} {[%emt
00:05:01]} Rc8 {[%clk 01:16:33]} {[%emt 00:03:33]} 17. b3 {[%clk 00:59:26]}
{[%emt 00:03:43]} b5 {[%clk 01:13:18]} {[%emt 00:03:45]} 18. a4 {[%clk
00:56:01]} {[%emt 00:03:56]} a6 {[%clk 01:10:43]} {[%emt 00:03:04]} 19. axb5
{[%clk 00:55:45]} {[%emt 00:00:46]} axb5 {[%clk 01:11:12]} {[%emt 00:00:01]} 20.
Ra6 {[%clk 00:47:32]} {[%emt 00:08:43]} Ra8 {[%clk 01:00:41]} {[%emt 00:11:01]}
21. Rxa8 {[%clk 00:46:59]} {[%emt 00:01:03]} Qxa8 {[%clk 01:01:10]} {[%emt
00:00:01]} 22. Bb2 {[%clk 00:47:21]} {[%emt 00:00:09]} Qb8 {[%clk 00:57:05]}
{[%emt 00:04:35]} 23. Ra1 {[%clk 00:39:13]} {[%emt 00:08:39]} Re8 {[%clk
00:55:25]} {[%emt 00:02:09]} 24. Bc1 {[%clk 00:34:41]} {[%emt 00:05:02]} Ne7
{[%emt 00:05:32]} 25. Be3 {[%clk 00:33:48]} Bf5 {[%clk 00:49:11]} {[%emt
00:03:05]} 26. Qd1 {[%clk 00:32:45]} {[%emt 00:01:33]} Qc8 {[%clk 00:46:46]}
{[%emt 00:02:56]} 27. Qd2 {[%clk 00:27:27]} {[%emt 00:05:47]} Rd8 {[%clk
00:40:54]} {[%emt 00:06:22]} 28. Bf4 {[%clk 00:20:46]} {[%emt 00:07:11]} Bxf4
{[%clk 00:35:13]} {[%emt 00:06:10]} 29. Qxf4 {[%clk 00:21:14]} {[%emt
00:00:03]} Bxd3 {[%clk 00:35:24]} {[%emt 00:00:18]} 30. Ne5 {[%clk 00:17:09]}
{[%emt 00:04:35]} Bf5 {[%clk 00:33:38]} {[%emt 00:02:16]} 31. Ra7 {[%clk
00:15:55]} {[%emt 00:01:45]} Ng6 {[%clk 00:32:35]} {[%emt 00:01:32]} 32. Nxg6
{[%clk 00:14:10]} {[%emt 00:02:15]} Bxg6 {[%clk 00:32:38]} {[%emt 00:00:27]} 33.
h4 {[%clk 00:11:54]} {[%emt 00:02:46]} c4 {[%clk 00:27:40]} {[%emt 00:05:29]}
34. bxc4 {[%clk 00:10:21]} {[%emt 00:02:04]} dxc4 {[%clk 00:23:51]} {[%emt
00:04:18]} 35. Qe5 {[%clk 00:06:47]} {[%emt 00:04:04]} Qf5 {[%clk 00:19:56]}
{[%emt 00:04:24]} 36. Qxf5 {[%clk 00:05:59]} {[%emt 00:01:19]} Bxf5 {[%clk
00:20:19]} {[%emt 00:00:07]} 37. Rb7 {[%clk 00:05:53]} {[%emt 00:00:36]} Bd7
{[%clk 00:20:05]} {[%emt 00:00:44]} 38. Kf1 {[%clk 00:05:10]} {[%emt 00:01:12]}
Kf8 {[%clk 00:19:18]} {[%emt 00:01:16]} 39. Be4 {[%clk 00:03:09]} {[%emt
00:02:32]} Bh3+ {[%clk 00:19:36]} {[%emt 00:00:12]} 40. Ke2 {[%clk 00:17:59]}
{[%emt 00:00:40]} Re8 {[%clk 00:34:57]} {[%emt 00:00:09]} 41. Kf3 {[%clk
00:18:24]} {[%emt 00:00:05]} Re5 {[%clk 00:32:25]} {[%emt 00:03:02]} 42. Bc6
{[%clk 00:15:22]} {[%emt 00:03:33]} Be6 {[%clk 00:31:07]} {[%emt 00:01:48]} 43.
Rxb5 {[%clk 00:13:58]} {[%emt 00:01:54]} Re1 {[%clk 00:31:10]} {[%emt
00:00:27]} 44. Ra5 {[%clk 00:12:35]} {[%emt 00:01:53]} Ke7 {[%clk 00:31:22]}
{[%emt 00:00:18]} 45. Kf4 {[%clk 00:09:24]} {[%emt 00:03:41]} Re2 {[%clk
00:29:11]} {[%emt 00:02:41]} 46. Kf3 {[%clk 00:06:59]} {[%emt 00:02:54]} Re1
{[%clk 00:27:55]} {[%emt 00:01:45]} 47. Kf4 {[%clk 00:07:06]} {[%emt 00:00:24]}
Kf6 {[%clk 00:28:16]} {[%emt 00:00:09]} 48. g4 {[%clk 00:06:24]} {[%emt
00:01:12]} g6 {[%clk 00:28:00]} {[%emt 00:00:46]} 49. g5+ {[%clk 00:06:17]}
{[%emt 00:00:37]} Kg7 {[%clk 00:28:11]} {[%emt 00:00:19]} 50. Re5 {[%clk
00:02:21]} {[%emt 00:04:26]} Rd1 {[%clk 00:28:23]} {[%emt 00:00:18]} 51. gxh6+
{[%clk 00:02:18]} {[%emt 00:00:33]} Kxh6 {[%clk 00:28:47]} {[%emt 00:00:06]} 52.
h5 {[%clk 00:02:25]} {[%emt 00:00:22]} Rd6 {[%clk 00:28:40]} {[%emt 00:00:37]}
53. Bb5 {[%clk 00:01:06]} {[%emt 00:01:49]} gxh5 {[%clk 00:27:33]} {[%emt
00:01:37]} 54. Re4 {[%clk 00:01:32]} {[%emt 00:00:05]} Rd2 {[%clk 00:26:34]}
{[%emt 00:01:29]} 55. Bxc4 {[%clk 00:01:36]} {[%emt 00:00:26]} Rxf2+ {[%clk
00:27:00]} {[%emt 00:00:04]} 56. Kg3 {[%clk 00:01:48]} {[%emt 00:00:17]} Rf6
{[%clk 00:27:24]} {[%emt 00:00:05]} 57. Bxe6 {[%clk 00:01:58]} {[%emt
00:00:21]} Rxe6 {[%clk 00:27:38]} {[%emt 00:00:16]} 58. Rc4 {[%clk 00:01:25]}
{[%emt 00:01:02]} Kg5 {[%clk 00:28:04]} {[%emt 00:00:04]} 59. Rc8 {[%clk
00:01:44]} {[%emt 00:00:12]} h4+ {[%clk 00:28:30]} {[%emt 00:00:04]} 60. Kf3
{[%clk 00:01:55]} {[%emt 00:00:19]} Rh6 {[%clk 00:28:11]} {[%emt 00:00:48]} 61.
Kg2 {[%clk 00:02:07]} {[%emt 00:00:18]} Kf4 {[%clk 00:27:28]} {[%emt 00:01:14]}
62. Kh3 {[%clk 00:01:32]} {[%emt 00:01:04]} f5 {[%clk 00:26:50]} {[%emt
00:01:08]} 63. c4 {[%clk 00:01:54]} {[%emt 00:00:09]} Rd6 {[%clk 00:26:02]}
{[%emt 00:01:17]} 64. c5 {[%clk 00:01:28]} {[%emt 00:00:56]} Rd1 {[%clk
00:26:18]} {[%emt 00:00:13]} 65. Ra8 {[%clk 00:01:20]} {[%emt 00:00:39]} Rh1+
{[%clk 00:26:39]} {[%emt 00:00:08]} 66. Kg2 {[%clk 00:01:48]} {[%emt 00:00:02]}
Rc1 {[%clk 00:27:04]} {[%emt 00:00:06]} 67. Kh3 {[%clk 00:00:52]} {[%emt
00:01:26]} Rxc5 {[%clk 00:27:12]} {[%emt 00:00:22]} 68. Kxh4 {[%clk 00:01:16]}
{[%emt 00:00:06]} Re5 {[%clk 00:26:36]} {[%emt 00:01:06]} 69. Ra3 {[%clk
00:01:05]} {[%emt 00:00:40]} Re4 {[%clk 00:25:45]} {[%emt 00:01:22]} 70. Rb3
{[%clk 00:00:43]} {[%emt 00:00:52]} Re5 {[%clk 00:24:43]} {[%emt 00:01:31]} 71.
Ra3 {[%clk 00:01:07]} {[%emt 00:00:06]} Rd5 {[%clk 00:24:37]} {[%emt 00:00:36]}
72. Kh3 {[%clk 00:01:18]} {[%emt 00:00:19]} Rd2 {[%clk 00:25:03]} {[%emt
00:00:04]} 73. Ra4+ {[%clk 00:00:50]} {[%emt 00:00:58]} Kf3 {[%clk 00:25:28]}
{[%emt 00:00:05]} 74. Ra3+ {[%clk 00:01:15]} {[%emt 00:00:05]} Kf2 {[%clk
00:25:39]} {[%emt 00:00:18]} 75. Kh4 {[%clk 00:01:25]} {[%emt 00:00:20]} Rd4+
{[%clk 00:26:03]} {[%emt 00:00:06]} 76. Kh3 {[%clk 00:01:15]} {[%emt 00:00:40]}
Re4 {[%clk 00:25:52]} {[%emt 00:00:40]} 77. Ra2+ {[%clk 00:00:45]} {[%emt
00:01:00]} Re2 {[%clk 00:26:22]} 78. Ra4 {[%clk 00:00:38]} {[%emt 00:00:38]}
Re3+ {[%clk 00:26:30]} {[%emt 00:00:22]} 79. Kh2 {[%clk 00:01:05]} {[%emt
00:00:02]} Re4 {[%clk 00:26:13]} {[%emt 00:00:46]} 80. Ra2+ {[%clk 00:01:30]}
{[%emt 00:00:06]} Re2 {[%clk 00:26:39]} {[%emt 00:00:03]} 81. Ra4 {[%clk
00:01:47]} {[%emt 00:00:14]} Kf3+ {[%clk 00:27:06]} {[%emt 00:00:03]} 82. Kh3
{[%clk 00:01:55]} {[%emt 00:00:22]} f4 {[%clk 00:27:28]} {[%emt 00:00:08]} 83.
Ra3+ {[%clk 00:02:10]} {[%emt 00:00:14]} Re3 {[%clk 00:27:53]} {[%emt
00:00:06]} 84. Ra2 {[%clk 00:02:25]} {[%emt 00:00:15]} Rd3 {[%clk 00:28:01]}
{[%emt 00:00:22]} 85. Kh2 {[%clk 00:01:54]} {[%emt 00:01:01]} Rd1 {[%clk
00:27:43]} {[%emt 00:00:48]} 86. Rb2 {[%clk 00:00:37]} {[%emt 00:01:48]} Re1
{[%clk 00:27:44]} {[%emt 00:00:29]} 87. Rb3+ {[%clk 00:00:37]} {[%emt
00:00:31]} Kf2 {[%clk 00:28:03]} {[%emt 00:00:10]} 88. Rb2+ {[%clk 00:00:35]}
{[%emt 00:00:32]} Kf1 {[%clk 00:28:13]} {[%emt 00:00:20]} 89. Rb3 {[%clk
00:00:35]} {[%emt 00:00:31]} Re2+ {[%clk 00:27:51]} {[%emt 00:00:52]} 90. Kh1
{[%clk 00:01:04]} Re3 {[%clk 00:28:11]} {[%emt 00:00:08]} 91. Rb1+ {[%clk
00:01:29]} {[%emt 00:00:06]} Kf2 {[%clk 00:28:36]} {[%emt 00:00:04]} 92. Kh2
{[%clk 00:01:38]} {[%emt 00:00:22]} Re1 {[%clk 00:28:03]} {[%emt 00:01:03]} 93.
Rb2+ {[%clk 00:01:59]} {[%emt 00:00:09]} Re2 {[%clk 00:28:24]} {[%emt
00:00:07]} 94. Rb1 {[%clk 00:02:22]} {[%emt 00:00:09]} Ra2 {[%clk 00:28:50]}
{[%emt 00:00:04]} 95. Rc1 {[%clk 00:01:36]} {[%emt 00:01:16]} Ra7 {[%clk
00:27:03]} {[%emt 00:02:17]} 96. Rc2+ {[%clk 00:01:34]} {[%emt 00:00:32]} Ke3
{[%clk 00:27:11]} {[%emt 00:00:21]} 97. Rc3+ {[%clk 00:01:16]} {[%emt
00:00:49]} Ke2 {[%clk 00:27:35]} {[%emt 00:00:06]} 98. Rc2+ {[%clk 00:01:14]}
{[%emt 00:00:32]} Ke3 {[%clk 00:27:25]} {[%emt 00:00:40]} 99. Rc3+ {[%clk
00:01:33]} {[%emt 00:00:11]} Kd4 {[%clk 00:27:46]} {[%emt 00:00:09]} 100. Rb3
{[%clk 00:01:27]} {[%emt 00:00:37]} Rg7 {[%clk 00:27:53]} {[%emt 00:00:22]} 101.
Rb4+ {[%clk 00:01:48]} {[%emt 00:00:09]} Ke3 {[%clk 00:26:52]} {[%emt
00:01:31]} 102. Rb3+ {[%clk 00:02:15]} {[%emt 00:00:04]} Ke2 {[%clk 00:26:54]}
{[%emt 00:00:28]} 103. Rb2+ {[%clk 00:02:41]} {[%emt 00:00:04]} Ke1 {[%clk
00:27:04]} {[%emt 00:00:20]} 104. Rb1+ {[%clk 00:03:08]} {[%emt 00:00:04]} Kd2
{[%clk 00:27:29]} {[%emt 00:00:05]} 105. Rb2+ {[%clk 00:03:34]} {[%emt
00:00:04]} Kd3 {[%clk 00:27:53]} {[%emt 00:00:06]} 106. Rb3+ {[%clk 00:04:01]}
{[%emt 00:00:04]} Kd4 {[%clk 00:27:20]} {[%emt 00:01:02]} 107. Rb4+ {[%clk
00:04:27]} {[%emt 00:00:04]} Ke5 {[%clk 00:27:05]} {[%emt 00:00:45]} 108. Rb5+
{[%clk 00:04:54]} {[%emt 00:00:04]} Kf6 {[%clk 00:27:24]} {[%emt 00:00:11]} 109.
Rb6+ {[%clk 00:05:20]} {[%emt 00:00:04]} Kf5 {[%clk 00:27:42]} {[%emt
00:00:11]} 110. Rb5+ {[%clk 00:05:46]} {[%emt 00:00:04]} Kg4 {[%clk 00:28:04]}
{[%emt 00:00:08]} 111. Kg2 {[%clk 00:06:09]} {[%emt 00:00:07]} Re7 {[%clk
00:28:30]} {[%emt 00:00:04]} 112. Rb2 {[%clk 00:06:15]} {[%emt 00:00:24]} Re3
{[%clk 00:28:54]} {[%emt 00:00:06]} 113. Ra2 {[%clk 00:06:27]} {[%emt
00:00:19]} Rh3 {[%clk 00:29:14]} {[%emt 00:00:10]} 114. Ra4 {[%clk 00:06:39]}
{[%emt 00:00:18]} Rh8 {[%clk 00:29:36]} {[%emt 00:00:08]} 115. Ra3 {[%clk
00:06:59]} {[%emt 00:00:11]} f3+ {[%clk 00:29:29]} {[%emt 00:00:37]} 116. Rxf3
{[%clk 00:07:25]} {[%emt 00:00:04]} Rh2+ {[%clk 00:29:56]} {[%emt 00:00:02]}
117. Kxh2 {[%clk 00:07:50]} {[%emt 00:00:05]} Kxf3 {[%clk 00:30:24]} {[%emt
00:00:03]} 1/2-1/2

[Event "IV Elllobregat Open Chess Tmnt"]
[Site "Sant Boi de Llobregat, Spain"]
[Date "2023.12.02"]
[Round "3.2"]
[White "Alekseenko, Kirill"]
[Black "Raja, Rithvik R"]
[Result "1/2-1/2"]
[TimeControl "90min/40moves + 15min/end + 30sec from move 1"]
[WhiteFideId "4135539"]
[BlackFideId "35007394"]
[WhiteElo "2670"]
[BlackElo "2495"]

1. Nf3 {[%clk 01:30:49]} {[%emt 00:00:09]} d5 {[%clk 01:30:17]} {[%emt
00:00:44]} 2. d4 {[%clk 01:31:06]} {[%emt 00:00:13]} Nf6 {[%clk 01:28:14]}
{[%emt 00:02:34]} 3. e3 {[%clk 01:31:20]} {[%emt 00:00:16]} e6 {[%clk
01:26:03]} {[%emt 00:02:41]} 4. Bd3 {[%clk 01:31:08]} {[%emt 00:00:41]} Bd6
{[%clk 01:25:49]} {[%emt 00:00:45]} 5. Nbd2 {[%clk 01:31:24]} {[%emt 00:00:14]}
O-O {[%clk 01:21:23]} {[%emt 00:04:56]} 6. e4 {[%clk 01:29:34]} {[%emt
00:02:20]} dxe4 {[%clk 01:21:27]} {[%emt 00:00:26]} 7. Nxe4 {[%clk 01:29:59]}
{[%emt 00:00:05]} Nxe4 {[%clk 01:21:28]} {[%emt 00:00:30]} 8. Bxe4 {[%clk
01:30:23]} {[%emt 00:00:06]} Nd7 {[%clk 01:21:40]} {[%emt 00:00:18]} 9. Qe2
{[%clk 01:30:33]} {[%emt 00:00:20]} c5 {[%clk 01:18:55]} {[%emt 00:03:15]} 10.
Bg5 {[%clk 01:22:56]} {[%emt 00:08:07]} Be7 {[%clk 01:16:24]} {[%emt 00:03:01]}
11. Bxe7 {[%clk 01:19:52]} {[%emt 00:03:34]} Qxe7 {[%clk 01:16:49]} {[%emt
00:00:06]} 12. O-O-O {[%clk 01:19:39]} {[%emt 00:00:42]} Nf6 {[%clk 01:08:55]}
{[%emt 00:08:24]} 13. Rhe1 {[%clk 01:07:23]} {[%emt 00:12:46]} Bd7 {[%clk
00:48:13]} {[%emt 00:21:12]} 14. Bxb7 {[%clk 00:51:48]} {[%emt 00:16:05]} Rab8
{[%clk 00:47:56]} {[%emt 00:00:47]} 15. Be4 {[%clk 00:51:49]} {[%emt 00:00:29]}
Rb6 {[%clk 00:36:19]} {[%emt 00:12:06]} 16. Ne5 {[%clk 00:44:20]} {[%emt
00:07:59]} Rfb8 {[%clk 00:34:36]} {[%emt 00:02:13]} 17. Nxd7 {[%clk 00:42:45]}
{[%emt 00:02:05]} Nxd7 {[%clk 00:34:57]} {[%emt 00:00:09]} 18. b3 {[%clk
00:43:08]} {[%emt 00:00:07]} cxd4 {[%clk 00:27:43]} {[%emt 00:07:44]} 19. Rxd4
{[%clk 00:42:50]} {[%emt 00:00:47]} Qa3+ {[%clk 00:26:13]} {[%emt 00:02:00]} 20.
Kb1 {[%clk 00:41:47]} {[%emt 00:01:33]} Nc5 {[%clk 00:22:13]} {[%emt 00:04:30]}
21. Qd2 {[%clk 00:40:38]} {[%emt 00:01:39]} g6 {[%clk 00:21:35]} {[%emt
00:01:09]} 22. Rd8+ {[%clk 00:38:06]} {[%emt 00:03:02]} Rxd8 {[%clk 00:21:55]}
{[%emt 00:00:10]} 23. Qxd8+ {[%clk 00:38:31]} {[%emt 00:00:05]} Kg7 {[%clk
00:22:23]} {[%emt 00:00:02]} 24. Qd4+ {[%clk 00:38:51]} {[%emt 00:00:10]} f6
{[%clk 00:20:24]} {[%emt 00:02:29]} 25. f3 {[%clk 00:23:55]} {[%emt 00:15:26]}
e5 {[%clk 00:18:57]} {[%emt 00:01:57]} 26. Qb2 {[%clk 00:19:12]} {[%emt
00:05:13]} Qa5 {[%clk 00:19:22]} {[%emt 00:00:05]} 27. Rd1 {[%clk 00:15:11]}
{[%emt 00:04:31]} Na4 {[%clk 00:17:47]} {[%emt 00:02:05]} 28. Rd7+ {[%clk
00:15:37]} {[%emt 00:00:05]} Kh8 {[%clk 00:16:22]} {[%emt 00:01:55]} 29. Qc1
{[%clk 00:15:01]} {[%emt 00:01:06]} Nc3+ {[%clk 00:13:18]} {[%emt 00:03:34]} 30.
Kb2 {[%clk 00:15:26]} {[%emt 00:00:05]} Na4+ {[%clk 00:10:46]} {[%emt
00:03:02]} 31. Ka1 {[%clk 00:15:20]} {[%emt 00:00:37]} Nc3 {[%clk 00:09:32]}
{[%emt 00:01:44]} 32. Kb2 {[%clk 00:08:19]} {[%emt 00:07:30]} Na4+ {[%clk
00:08:56]} {[%emt 00:01:06]} 33. Ka1 {[%clk 00:08:43]} {[%emt 00:00:06]} Nc3
{[%clk 00:08:19]} {[%emt 00:01:07]} 34. a4 {[%clk 00:06:14]} {[%emt 00:02:59]}
Qb4 {[%clk 00:04:56]} {[%emt 00:03:53]} 35. Rc7 {[%clk 00:04:06]} {[%emt
00:02:38]} Ra6 {[%clk 00:04:02]} {[%emt 00:01:24]} 36. Rxc3 {[%clk 00:02:52]}
{[%emt 00:01:43]} Qxc3+ {[%clk 00:04:26]} {[%emt 00:00:07]} 37. Qb2 {[%clk
00:03:14]} {[%emt 00:00:08]} Qd2 {[%clk 00:03:05]} {[%emt 00:01:51]} 38. Qa3
{[%clk 00:02:17]} {[%emt 00:01:27]} Rd6 {[%clk 00:02:50]} {[%emt 00:00:45]} 39.
Ka2 {[%clk 00:02:14]} {[%emt 00:00:34]} Kg7 {[%clk 00:01:48]} {[%emt 00:01:32]}
40. Qc5 {[%clk 00:17:13]} {[%emt 00:00:30]} a5 {[%clk 00:16:58]} {[%emt
00:00:21]} 41. g4 {[%clk 00:15:07]} {[%emt 00:02:36]} Rd7 {[%clk 00:15:29]}
{[%emt 00:01:59]} 42. h4 {[%clk 00:14:58]} {[%emt 00:00:38]} Qb4 {[%clk
00:10:57]} {[%emt 00:05:02]} 43. Qb5 {[%clk 00:12:22]} {[%emt 00:03:06]} Rc7
{[%clk 00:09:11]} {[%emt 00:02:16]} 44. Qd5 {[%clk 00:11:44]} {[%emt 00:01:08]}
Qc5 {[%clk 00:07:33]} {[%emt 00:02:08]} 45. Qd8 {[%clk 00:10:24]} {[%emt
00:01:50]} Qb6 {[%clk 00:07:06]} {[%emt 00:00:57]} 46. Qd2 {[%clk 00:08:09]}
{[%emt 00:02:45]} Qa7 {[%clk 00:04:51]} {[%emt 00:02:45]} 47. h5 {[%clk
00:07:46]} {[%emt 00:00:53]} Rd7 {[%clk 00:05:05]} {[%emt 00:00:16]} 48. h6+
{[%clk 00:07:59]} {[%emt 00:00:16]} Kf7 {[%clk 00:05:02]} {[%emt 00:00:33]} 49.
Qc3 {[%clk 00:07:50]} {[%emt 00:00:39]} Qc7 {[%clk 00:04:51]} {[%emt 00:00:40]}
50. Qe3 {[%clk 00:05:08]} {[%emt 00:03:12]} Qa7 {[%clk 00:03:54]} {[%emt
00:01:28]} 51. Qe2 {[%clk 00:05:23]} {[%emt 00:00:14]} Qc5 {[%clk 00:03:24]}
{[%emt 00:01:00]} 52. Qb5 {[%clk 00:03:14]} {[%emt 00:02:40]} Rc7 {[%clk
00:02:12]} {[%emt 00:01:42]} 53. Qa6 {[%clk 00:02:58]} {[%emt 00:00:46]} Ke7
{[%clk 00:02:05]} {[%emt 00:00:37]} 54. Bd3 {[%clk 00:02:55]} {[%emt 00:00:33]}
Ra7 {[%clk 00:01:48]} {[%emt 00:00:48]} 55. Qb5 {[%clk 00:02:55]} {[%emt
00:00:30]} Qxb5 {[%clk 00:01:51]} {[%emt 00:00:27]} 56. axb5 {[%clk 00:02:52]}
{[%emt 00:00:32]} Kd6 {[%clk 00:02:19]} {[%emt 00:00:02]} 57. Ka3 {[%clk
00:02:44]} {[%emt 00:00:39]} Kc5 {[%clk 00:02:11]} {[%emt 00:00:38]} 58. Ka4
{[%clk 00:03:05]} {[%emt 00:00:09]} Rf7 {[%clk 00:02:11]} {[%emt 00:00:29]} 59.
Bc4 {[%clk 00:02:54]} {[%emt 00:00:41]} Rf8 {[%clk 00:02:20]} {[%emt 00:00:21]}
60. Bd3 {[%clk 00:01:55]} {[%emt 00:01:29]} f5 {[%clk 00:01:54]} {[%emt
00:00:56]} 61. gxf5 {[%clk 00:02:16]} {[%emt 00:00:09]} gxf5 {[%clk 00:02:19]}
{[%emt 00:00:05]} 62. c3 {[%clk 00:02:07]} {[%emt 00:00:39]} Kb6 {[%clk
00:02:07]} {[%emt 00:00:43]} 63. b4 {[%clk 00:02:08]} {[%emt 00:00:28]} axb4
{[%clk 00:02:25]} {[%emt 00:00:12]} 64. Kxb4 {[%clk 00:02:34]} {[%emt
00:00:04]} e4 {[%clk 00:02:45]} {[%emt 00:00:10]} 65. Be2 {[%clk 00:01:55]}
{[%emt 00:01:09]} Rd8 {[%clk 00:01:44]} {[%emt 00:01:31]} 66. fxe4 {[%clk
00:01:08]} {[%emt 00:01:17]} Rd2 {[%clk 00:01:39]} {[%emt 00:00:35]} 67. Bf3
{[%clk 00:00:55]} {[%emt 00:00:43]} Rf2 {[%clk 00:01:56]} {[%emt 00:00:13]} 68.
Bh5 {[%clk 00:00:37]} {[%emt 00:00:48]} fxe4 {[%clk 00:02:03]} {[%emt
00:00:23]} 69. c4 {[%clk 00:00:57]} {[%emt 00:00:10]} Rb2+ {[%clk 00:02:07]}
{[%emt 00:00:26]} 70. Kc3 {[%clk 00:00:59]} {[%emt 00:00:28]} Rh2 {[%clk
00:02:33]} {[%emt 00:00:04]} 71. Bg4 {[%clk 00:01:26]} {[%emt 00:00:04]} Kc5
{[%clk 00:01:41]} {[%emt 00:01:22]} 72. Bf5 {[%clk 00:01:49]} {[%emt 00:00:06]}
Rh4 {[%clk 00:00:38]} {[%emt 00:01:34]} 73. Bxh7 {[%clk 00:00:44]} {[%emt
00:01:36]} Rh3+ {[%clk 00:01:04]} {[%emt 00:00:04]} 74. Kc2 {[%clk 00:00:38]}
{[%emt 00:00:35]} Kd4 {[%clk 00:01:07]} {[%emt 00:00:28]} 75. c5 {[%clk
00:00:45]} {[%emt 00:00:23]} Rxh6 {[%clk 00:00:41]} {[%emt 00:00:56]} 76. c6
{[%clk 00:01:14]} {[%emt 00:00:01]} Rxh7 {[%clk 00:00:40]} {[%emt 00:00:31]} 77.
b6 {[%clk 00:01:43]} {[%emt 00:00:01]} Rh2+ {[%clk 00:00:41]} {[%emt 00:00:29]}
78. Kb3 {[%clk 00:01:47]} {[%emt 00:00:26]} Rh3+ {[%clk 00:00:47]} {[%emt
00:00:24]} 79. Ka4 {[%clk 00:01:26]} {[%emt 00:00:51]} e3 {[%clk 00:00:57]}
{[%emt 00:00:20]} 80. c7 {[%clk 00:01:38]} {[%emt 00:00:18]} Rh8 {[%clk
00:01:03]} {[%emt 00:00:24]} 81. b7 {[%clk 00:01:40]} {[%emt 00:00:28]} 1/2-1/2